bitfinex-derivatives/quotes_BTCF0:USTF0_20241223
["timestamp","ask_amount","ask_price","bid_price","bid_amount"]
[1734995220660,0.001,95191.0,95190.0,0.1331]
[1734995220858,0.008,95191.0,95190.0,0.1331]
[1734995221452,0.001,95191.0,95190.0,0.1421]
[1734995221660,0.001,95191.0,95190.0,0.2648]
[1734995221854,0.001,95199.0,95190.0,0.2648]
[1734995222157,0.001,95199.0,95190.0,0.2678]
[1734995222550,0.001,95199.0,95191.0,0.052591]
[1734995222758,0.001,95199.0,95190.0,0.29577573]
[1734995222957,0.001,95191.0,95190.0,0.17307573]
[1734995223351,0.001,95191.0,95190.0,0.17007573]
[1734995223659,0.052587,95199.0,95190.0,0.16407573]
[1734995223866,0.053587,95199.0,95190.0,0.17207573]
[1734995224164,0.053587,95199.0,95190.0,0.16907573]
[1734995224462,0.3608,95205.0,95190.0,0.01]
[1734995224463,0.053591,95191.0,95190.0,0.01]
[1734995224760,0.053591,95191.0,95190.0,0.002]
[1734995224761,0.052591,95191.0,95190.0,0.002]
[1734995224965,0.052591,95191.0,95190.0,0.007]
[1734995225263,0.052591,95191.0,95162.0,0.1231]
[1734995225457,0.052591,95191.0,95157.0,0.3608]
[1734995225458,0.052606,95163.0,95157.0,0.3608]
[1734995225658,0.052606,95163.0,95150.0,0.052613]
[1734995225858,0.3608,95168.0,95150.0,0.07983645]
[1734995226062,0.3608,95159.0,95150.0,0.07983645]
[1734995227255,0.3618,95159.0,95150.0,0.04122345]
[1734995227459,0.05261,95156.0,95150.0,0.014]
[1734995228057,0.002,95159.0,95158.0,0.052609]
[1734995229368,0.3608,95180.0,95158.0,0.052609]
[1734995229554,0.3608,95180.0,95155.0,0.3608]
[1734995229760,0.3608,95180.0,95166.0,0.3608]
[1734995230069,0.36140001,95187.0,95172.0,0.052601]
[1734995230267,0.3608,95187.0,95172.0,0.052601]
[1734995230963,0.001,95180.0,95172.0,0.052601]
[1734995231968,0.001,95180.0,95166.0,0.3608]
[1734995231969,0.001,95180.0,95173.0,0.052601]
[1734995232168,0.001,95180.0,95174.0,0.0526]
[1734995232561,0.3618,95187.0,95174.0,0.0526]
[1734995233170,0.3608,95187.0,95174.0,0.0526]
[1734995233370,0.001,95180.0,95174.0,0.0536]
[1734995233665,0.001,95180.0,95174.0,0.001]
[1734995233869,0.052597,95181.0,95174.0,0.007]
[1734995234169,0.3618,95187.0,95174.0,0.007]
[1734995234363,0.3608,95175.0,95174.0,0.007]
[1734995235456,0.052603,95168.0,95167.0,0.18562281]
[1734995235671,0.052608,95160.0,95159.0,0.24787297]
[1734995235871,0.413408,95160.0,95159.0,0.24787297]
[1734995236565,0.413408,95160.0,95151.0,0.052613]
[1734995236766,0.3608,95160.0,95150.0,0.15914657]
[1734995237065,0.052597,95180.0,95168.0,0.052603]
[1734995237470,0.052597,95180.0,95174.0,0.001]
[1734995237776,0.052597,95179.0,95174.0,0.001]
[1734995238571,0.12518977,95181.0,95174.0,0.001]
[1734995238572,0.052599,95176.0,95174.0,0.001]
[1734995238770,0.052599,95176.0,95164.0,0.052606]
[1734995239077,0.052602,95170.0,95160.0,0.1246]
[1734995239271,0.052602,95170.0,95160.0,0.14903318]
[1734995240469,0.053602,95170.0,95160.0,0.15003318]
[1734995240777,0.052607,95162.0,95160.0,0.001]
[1734995241283,0.3608,95163.0,95160.0,0.001]
[1734995241470,0.053603,95170.0,95160.0,0.001]
[1734995241773,0.052605,95166.0,95160.0,0.001]
[1734995242470,0.052605,95166.0,95160.0,0.002]
[1734995242780,0.052606,95165.0,95160.0,0.004]
[1734995242977,0.3608,95163.0,95160.0,0.004]
[1734995243179,0.3608,95163.0,95160.0,0.006]
[1734995243478,0.3608,95163.0,95160.0,0.007]
[1734995243679,0.3608,95163.0,95160.0,0.001]
[1734995243982,0.3608,95163.0,95160.0,0.003]
[1734995245073,0.052607,95162.0,95160.0,0.002]
[1734995246971,0.052609,95159.0,95152.0,0.0243791]
[1734995247180,0.052609,95159.0,95147.0,0.052615]
[1734995248583,0.3608,95163.0,95147.0,0.052615]
[1734995248783,0.05261,95157.0,95152.0,0.007]
[1734995249081,0.001,95159.0,95152.0,0.007]
[1734995249276,0.001,95159.0,95152.0,0.001]
[1734995249483,0.001,95159.0,95147.0,0.006]
[1734995249484,0.001,95159.0,95151.0,0.052612]
[1734995249785,0.052607,95162.0,95152.0,0.004]
[1734995250178,0.052607,95161.0,95152.0,0.004]
[1734995250379,0.052609,95159.0,95152.0,0.004]
[1734995251280,0.052609,95159.0,95147.0,0.0261784]
[1734995251479,0.3608,95162.0,95152.0,0.002]
[1734995251676,0.3608,95172.0,95161.0,0.3608]
[1734995251877,0.3608,95172.0,95169.0,0.052603]
[1734995252388,0.3608,95172.0,95170.0,0.052602]
[1734995253084,0.3668,95172.0,95170.0,0.052602]
[1734995254379,0.3698,95172.0,95170.0,0.07714019]
[1734995254889,0.009,95172.0,95170.0,0.02453819]
[1734995255087,0.002,95172.0,95171.0,0.052602]
[1734995255388,0.004,95172.0,95171.0,0.052602]
[1734995255977,0.004,95172.0,95168.0,0.24787297]
[1734995256179,0.052603,95169.0,95168.0,0.24787297]
[1734995257386,0.3608,95170.0,95154.0,0.02459471]
[1734995257387,0.052603,95168.0,95167.0,0.24787297]
[1734995258090,0.3608,95170.0,95167.0,0.24787297]
[1734995258274,0.002,95169.0,95168.0,0.052603]
[1734995258587,0.48598977,95188.0,95168.0,0.319503]
[1734995258781,0.48598977,95188.0,95180.0,0.052596]
[1734995258977,0.18777131,95187.0,95180.0,0.052596]
[1734995259478,0.18777131,95187.0,95178.0,0.052598]
[1734995259886,0.052594,95186.0,95172.0,0.052601]
[1734995260292,0.052594,95185.0,95180.0,0.001]
[1734995260480,0.052596,95181.0,95180.0,0.001]
[1734995260884,0.052601,95172.0,95171.0,0.30892354]
[1734995261086,0.413401,95172.0,95171.0,0.30892354]
[1734995261893,0.052603,95170.0,95159.0,0.052608]
[1734995262095,0.3608,95162.0,95159.0,0.052608]
[1734995262384,0.3608,95162.0,95154.0,0.02167232]
[1734995262605,0.3608,95162.0,95154.0,0.052611]
[1734995262891,0.3608,95162.0,95153.0,0.30892354]
[1734995262892,0.3608,95162.0,95153.0,0.32996002]
[1734995263081,0.3608,95162.0,95153.0,0.02103648]
[1734995263283,0.3608,95162.0,95150.0,0.15914657]
[1734995263482,0.3608,95162.0,95159.0,0.002]
[1734995265387,0.3608,95172.0,95160.0,0.052608]
[1734995265583,0.12586064,95175.0,95169.0,0.3608]
[1734995266886,0.052599,95176.0,95169.0,0.3608]
[1734995267193,0.052602,95170.0,95169.0,0.3608]
[1734995268189,0.002,95175.0,95169.0,0.3608]
[1734995268387,0.002,95170.0,95169.0,0.3608]
[1734995269791,0.004,95170.0,95169.0,0.3608]
[1734995270992,0.12586064,95187.0,95186.0,0.052593]
[1734995271195,0.00056001,95220.0,95201.0,0.052585]
[1734995271383,0.3608,95227.0,95214.0,0.3608]
[1734995272295,0.21939738,95234.0,95229.0,0.05257]
[1734995272485,0.21939738,95234.0,95233.0,0.3608]
[1734995272683,0.21939738,95234.0,95200.0,0.3608]
[1734995272884,0.007,95215.0,95214.0,0.001]
[1734995273603,0.011,95215.0,95214.0,0.001]
[1734995274286,0.007,95215.0,95209.0,0.052581]
[1734995274486,0.004,95215.0,95209.0,0.052581]
[1734995274697,0.004,95215.0,95213.0,0.052578]
[1734995275094,0.3608,95231.0,95208.0,0.72957464]
[1734995275290,0.004,95215.0,95214.0,0.052578]
[1734995275989,0.011,95215.0,95214.0,0.053578]
[1734995277283,0.004,95215.0,95214.0,0.052578]
[1734995277498,0.006,95215.0,95214.0,0.052578]
[1734995279383,0.006,95215.0,95210.0,0.05258]
[1734995279600,0.006,95215.0,95208.0,0.3608]
[1734995279601,0.006,95215.0,95211.0,0.052579]
[1734995279898,0.006,95215.0,95212.0,0.052579]
[1734995280497,0.002,95215.0,95213.0,0.052578]
[1734995280694,0.004,95215.0,95213.0,0.052578]
[1734995281294,0.004,95215.0,95210.0,0.05258]
[1734995281498,0.004,95215.0,95208.0,0.38203145]
[1734995281695,0.004,95215.0,95213.0,0.052578]
[1734995282100,0.005,95215.0,95213.0,0.052578]
[1734995282592,0.005,95215.0,95208.0,0.38203145]
[1734995282593,0.002,95215.0,95208.0,0.38203145]
[1734995282797,0.003,95215.0,95209.0,0.052581]
[1734995283198,0.002,95215.0,95208.0,0.38203145]
[1734995283399,0.002,95215.0,95213.0,0.052579]
[1734995283400,0.005,95215.0,95213.0,0.052579]
[1734995283595,0.003,95215.0,95213.0,0.052579]
[1734995283796,0.004,95215.0,95213.0,0.052579]
[1734995284405,0.001,95215.0,95213.0,0.052579]
[1734995284588,0.003,95215.0,95213.0,0.052579]
[1734995286107,0.005,95215.0,95213.0,0.052579]
[1734995286402,0.002,95215.0,95213.0,0.052579]
[1734995286600,0.005,95215.0,95208.0,0.43461245]
[1734995286900,0.005,95215.0,95213.0,0.052578]
[1734995287496,9.066e-05,95215.0,95213.0,0.052578]
[1734995287896,0.15903897,95260.0,95237.0,0.052565]
[1734995287897,0.3608,95243.0,95237.0,0.052565]
[1734995288099,0.3608,95243.0,95221.0,0.3608]
[1734995288303,0.052567,95234.0,95222.0,0.052573]
[1734995288909,0.052569,95231.0,95221.0,0.3608]
[1734995289209,0.052569,95230.0,95221.0,0.3608]
[1734995289807,0.052571,95227.0,95221.0,0.413374]
[1734995290006,0.052571,95226.0,95221.0,0.053574]
[1734995290204,0.3608,95227.0,95225.0,0.052572]
[1734995290707,0.01,95230.0,95229.0,0.05257]
[1734995291098,0.004,95230.0,95229.0,0.05257]
[1734995291520,0.004,95230.0,95223.0,0.052573]
[1734995291698,0.056569,95230.0,95225.0,0.052572]
[1734995291903,0.05257,95229.0,95225.0,0.052572]
[1734995292097,0.052573,95223.0,95221.0,0.001]
[1734995292296,0.052574,95222.0,95217.0,0.052576]
[1734995292497,0.3608,95218.0,95217.0,0.052576]
[1734995293000,0.052574,95222.0,95218.0,0.052576]
[1734995293199,0.006,95223.0,95222.0,0.052573]
[1734995293799,0.36136001,95227.0,95218.0,0.3608]
[1734995293995,0.00056001,95240.0,95239.0,0.052564]
[1734995294208,0.052549,95266.0,95239.0,0.052564]
[1734995294209,0.1258,95257.0,95256.0,0.052555]
[1734995296003,0.3608,95264.0,95263.0,0.052551]
[1734995296900,0.1228,95269.0,95268.0,0.052548]
[1734995297698,0.3608,95292.0,95283.0,0.052539]
[1734995297904,0.1322,95299.0,95282.0,0.3608]
[1734995298308,0.1322,95299.0,95289.0,0.052536]
[1734995299309,0.1392,95299.0,95289.0,0.052536]
[1734995299508,0.007,95299.0,95283.0,0.05254]
[1734995299702,0.007,95299.0,95298.0,0.052532]
[1734995299899,0.007,95299.0,95294.0,0.00096]
[1734995300112,0.007,95299.0,95284.0,0.3608]
[1734995300113,0.007,95299.0,95285.0,0.052539]
[1734995300404,0.016,95299.0,95292.0,0.052534]
[1734995300702,0.016,95299.0,95284.0,0.3608]
[1734995300912,0.016,95299.0,95298.0,0.001]
[1734995301111,0.1395,95299.0,95298.0,0.001]
[1734995301814,0.1325,95299.0,95298.0,0.001]
[1734995302015,0.1405,95299.0,95298.0,0.001]
[1734995302310,0.1405,95299.0,95285.0,0.001]
[1734995302513,0.3608,95297.0,95285.0,0.001]
[1734995302814,0.3608,95297.0,95286.0,0.052538]
[1734995303015,0.3608,95297.0,95291.0,0.052535]
[1734995303220,0.3608,95297.0,95296.0,0.052533]
[1734995303417,0.008,95299.0,95298.0,0.052532]
[1734995303618,0.017,95299.0,95292.0,0.3608]
[1734995304114,0.009,95297.0,95292.0,0.3608]
[1734995304519,0.009,95297.0,95295.0,0.052533]
[1734995304709,0.3608,95321.0,95298.0,0.052532]
[1734995305016,0.3608,95321.0,95307.0,0.413326]
[1734995305403,0.3608,95321.0,95310.0,0.15889761]
[1734995305715,0.052508,95342.0,95320.0,0.3608]
[1734995305916,0.003,95321.0,95320.0,0.51969761]
[1734995306111,0.003,95321.0,95320.0,0.413319]
[1734995306711,0.009,95321.0,95320.0,0.413319]
[1734995306913,0.009,95321.0,95320.0,0.3608]
[1734995307108,0.009,95321.0,95320.0,0.2878]
[1734995307523,0.018,95321.0,95320.0,0.2888]
[1734995308312,0.009,95321.0,95320.0,0.2898]
[1734995308514,0.016,95321.0,95320.0,0.2898]
[1734995309613,0.016,95321.0,95320.0,0.342319]
[1734995309917,0.3608,95335.0,95333.0,0.052512]
[1734995310617,0.3608,95335.0,95325.0,0.15889761]
[1734995310618,0.052503,95350.0,95335.0,0.052511]
[1734995310815,0.3608,95363.0,95342.0,0.3608]
[1734995311015,0.3608,95372.0,95350.0,0.15889761]
[1734995311313,0.3608,95372.0,95360.0,0.15889761]
[1734995311619,0.052493,95369.0,95360.0,0.15889761]
[1734995311918,0.052493,95369.0,95354.0,0.3608]
[1734995312113,0.3608,95372.0,95354.0,0.3608]
[1734995312419,0.38756001,95379.0,95377.0,0.052488]
[1734995312420,0.00056001,95379.0,95377.0,0.052488]
[1734995312612,0.052477,95397.0,95378.0,0.052487]
[1734995312920,0.3608,95399.0,95380.0,0.15889761]
[1734995313102,0.3608,95399.0,95389.0,0.15889761]
[1734995313302,0.3608,95399.0,95387.0,0.052482]
[1734995313507,0.3608,95399.0,95389.0,0.15889761]
[1734995313818,0.3608,95407.0,95389.0,0.15889761]
[1734995314007,0.3608,95407.0,95378.0,0.001]
[1734995314207,0.052481,95391.0,95389.0,0.001]
[1734995314408,0.3608,95397.0,95389.0,0.001]
[1734995314812,0.3658,95397.0,95389.0,0.001]
[1734995315313,0.005,95397.0,95389.0,0.001]
[1734995315515,0.36136001,95407.0,95391.0,0.3608]
[1734995315722,0.005,95397.0,95389.0,0.002]
[1734995316210,0.005,95397.0,95391.0,0.05248]
[1734995316719,0.005,95397.0,95391.0,0.05348]
[1734995317213,0.005,95397.0,95389.0,0.053481]
[1734995317609,0.105,95400.0,95393.0,0.052479]
[1734995318414,0.005,95397.0,95393.0,0.052479]
[1734995318814,0.005,95397.0,95392.0,0.3608]
[1734995319220,0.1,95400.0,95392.0,0.3608]
[1734995319919,0.1,95400.0,95392.0,0.3618]
[1734995320922,0.3608,95416.0,95392.0,1.0226]
[1734995321119,0.052458,95432.0,95416.0,0.052466]
[1734995321323,0.052458,95432.0,95420.0,0.15889761]
[1734995322008,0.3608,95434.0,95414.0,0.3608]
[1734995322215,0.052461,95427.0,95410.0,0.15889761]
[1734995322420,0.413261,95426.0,95410.0,0.15889761]
[1734995322622,0.3608,95418.0,95400.0,0.15889761]
[1734995322819,0.052468,95413.0,95400.0,0.15889761]
[1734995323014,0.052465,95420.0,95405.0,0.3608]
[1734995323323,0.052465,95420.0,95414.0,0.001]
[1734995323722,0.3608,95418.0,95410.0,0.15889761]
[1734995324024,0.3608,95418.0,95410.0,0.21136761]
[1734995325421,0.3648,95418.0,95410.0,0.21136761]
[1734995325719,0.3648,95418.0,95410.0,0.15889761]
[1734995326022,0.004,95418.0,95410.0,0.21136761]
[1734995326323,0.004,95418.0,95416.0,0.052466]
[1734995326922,0.3608,95439.0,95429.0,0.15889761]
[1734995327122,0.3608,95446.0,95445.0,0.052451]
[1734995327822,0.36136001,95461.0,95450.0,0.052448]
[1734995328017,0.3608,95461.0,95450.0,0.21134561]
[1734995328329,0.3608,95461.0,95452.0,0.052447]
[1734995328525,0.052446,95455.0,95441.0,0.052453]
[1734995328715,0.3608,95461.0,95437.0,0.3608]
[1734995329040,0.3608,95444.0,95437.0,0.37823809]
[1734995329426,0.413251,95444.0,95437.0,0.37823809]
[1734995329725,0.052454,95439.0,95437.0,0.01743809]
[1734995329925,0.3608,95444.0,95423.0,0.052463]
[1734995330129,0.3608,95444.0,95430.0,0.15889761]
[1734995330130,0.3608,95432.0,95430.0,0.15889761]
[1734995330317,0.3608,95432.0,95423.0,0.01716299]
[1734995330625,0.3608,95432.0,95426.0,0.052461]
[1734995331025,0.33333602,95432.0,95429.0,0.052459]
[1734995331213,0.33333602,95432.0,95426.0,0.01791294]
[1734995331415,0.33333602,95432.0,95422.0,0.15889761]
[1734995331728,0.33333602,95432.0,95427.0,0.052461]
[1734995332314,0.33333602,95432.0,95423.0,0.002]
[1734995332512,0.33333602,95432.0,95424.0,0.052462]
[1734995333424,0.33333602,95432.0,95427.0,0.002]
[1734995333625,0.052459,95431.0,95427.0,0.002]
[1734995334117,0.33333602,95432.0,95427.0,0.002]
[1734995334323,0.33333602,95432.0,95427.0,0.054461]
[1734995334527,0.3608,95444.0,95427.0,0.3638]
[1734995334825,0.3608,95444.0,95430.0,0.15889761]
[1734995335329,0.052453,95442.0,95430.0,0.15889761]
[1734995336124,0.3608,95444.0,95430.0,0.001]
[1734995336329,0.052458,95433.0,95430.0,0.001]
[1734995336716,0.3608,95435.0,95427.0,0.3608]
[1734995336917,0.052459,95431.0,95430.0,0.001]
[1734995337319,0.3608,95435.0,95422.0,0.01718752]
[1734995337520,0.3608,95435.0,95430.0,0.001]
[1734995338025,0.052459,95431.0,95430.0,0.001]
[1734995338929,0.052457,95434.0,95427.0,0.002]
[1734995339119,0.05246,95428.0,95427.0,0.002]
[1734995339320,0.3608,95435.0,95420.0,0.35256095]
[1734995339525,0.052462,95426.0,95420.0,0.35256095]
[1734995340318,0.052463,95424.0,95420.0,8.095e-05]
[1734995340717,0.3608,95426.0,95420.0,0.00108095]
[1734995341125,0.052459,95430.0,95420.0,0.05354495]
[1734995341319,0.3608,95435.0,95420.0,0.21144256]
[1734995341531,0.3608,95435.0,95420.0,0.00108095]
[1734995341532,0.05246,95428.0,95420.0,0.00108095]
[1734995341718,0.3608,95435.0,95420.0,0.00108095]
[1734995341917,0.3608,95427.0,95420.0,0.00308095]
[1734995342123,0.052464,95421.0,95420.0,0.00308095]
[1734995342422,0.3608,95427.0,95420.0,0.00308095]
[1734995343130,0.052462,95425.0,95420.0,0.00108095]
[1734995343328,0.3608,95427.0,95420.0,0.00308095]
[1734995343538,0.052464,95421.0,95420.0,0.00308095]
[1734995343721,0.052464,95421.0,95420.0,0.00208095]
[1734995343920,0.052464,95421.0,95420.0,0.00308095]
[1734995344127,0.052464,95421.0,95417.0,0.24371433]
[1734995344128,0.052466,95418.0,95417.0,0.24371433]
[1734995344527,0.052466,95418.0,95417.0,0.04051433]
[1734995344723,0.05247,95411.0,95410.0,0.30974329]
[1734995344926,0.41327,95411.0,95410.0,0.30974329]
[1734995345122,0.41327,95411.0,95394.0,0.052479]
[1734995345123,0.052475,95401.0,95400.0,0.30974329]
[1734995345318,0.413275,95401.0,95400.0,0.30974329]
[1734995346832,0.413275,95401.0,95387.0,0.052483]
[1734995346833,0.052476,95400.0,95389.0,0.01735179]
[1734995347037,0.052481,95390.0,95389.0,0.01735179]
[1734995347227,0.3608,95391.0,95380.0,0.39480913]
[1734995347429,0.3608,95391.0,95381.0,0.04460235]
[1734995347728,0.052485,95383.0,95382.0,0.04460235]
[1734995348034,0.052485,95383.0,95369.0,0.37169195]
[1734995348035,0.05249,95374.0,95369.0,0.37169195]
[1734995348231,0.05249,95374.0,95371.0,0.04461598]
[1734995348427,0.052491,95373.0,95372.0,0.04461598]
[1734995348733,0.052491,95373.0,95369.0,0.38953403]
[1734995348936,0.052491,95372.0,95370.0,0.04460766]
[1734995349239,0.052486,95382.0,95380.0,0.002]
[1734995349824,0.052486,95382.0,95369.0,0.008]
[1734995350035,0.052492,95370.0,95369.0,0.012]
[1734995350632,0.052492,95370.0,95369.0,0.008]
[1734995350941,0.41338594,95370.0,95369.0,0.008]
[1734995351235,0.41338594,95370.0,95344.0,0.73249195]
[1734995351236,0.0525,95355.0,95344.0,0.73249195]
[1734995351431,0.0525,95355.0,95347.0,0.0171723]
[1734995352532,9.394e-05,95369.0,95354.0,0.36191913]
[1734995352533,0.052496,95363.0,95354.0,0.36191913]
[1734995352729,0.3608,95366.0,95354.0,0.36191913]
[1734995353339,0.052499,95357.0,95354.0,0.36191913]
[1734995353735,0.3608,95355.0,95354.0,0.00111913]
[1734995354240,0.3608,95355.0,95354.0,0.00011913]
[1734995354434,0.3608,95355.0,95333.0,0.36952496]
[1734995354625,0.05251,95337.0,95333.0,0.3524]
[1734995355425,0.3608,95338.0,95333.0,0.3524]
[1734995355626,9.56e-05,95336.0,95333.0,0.3604]
[1734995356239,0.052511,95335.0,95333.0,0.3644]
[1734995357627,0.052511,95335.0,95333.0,0.3634]
[1734995358238,0.052511,95335.0,95333.0,0.3564]
[1734995359142,0.052511,95335.0,95333.0,0.3524]
[1734995359337,0.052511,95335.0,95333.0,0.3564]
[1734995359735,0.052511,95335.0,95333.0,0.004]
[1734995359937,0.052511,95335.0,95309.0,0.54538953]
[1734995360133,0.052522,95316.0,95309.0,0.54634953]
[1734995360441,0.052522,95316.0,95311.0,0.14999416]
[1734995360942,0.3608,95320.0,95311.0,0.14999416]
[1734995361149,0.3608,95320.0,95309.0,0.54634953]
[1734995361337,0.052524,95314.0,95309.0,0.54538953]
[1734995361536,0.052524,95314.0,95311.0,0.009]
[1734995361735,0.001,95316.0,95311.0,0.009]
[1734995362135,0.00010615,95319.0,95311.0,0.009]
[1734995362339,0.00010615,95319.0,95311.0,0.017]
[1734995362649,0.00010615,95319.0,95317.0,0.3608]
[1734995363342,0.00110615,95319.0,95317.0,0.3608]
[1734995364346,0.00110615,95319.0,95317.0,0.3638]
[1734995365338,0.00010615,95319.0,95317.0,0.3708]
[1734995365537,0.00110615,95319.0,95317.0,0.3708]
[1734995366644,0.00110615,95319.0,95317.0,0.01]
[1734995367139,0.052521,95318.0,95317.0,0.01]
[1734995368441,0.053521,95318.0,95317.0,0.009]
[1734995369039,0.052521,95318.0,95317.0,0.004]
[1734995369545,0.052521,95318.0,95317.0,0.003]
[1734995369747,0.054521,95318.0,95317.0,0.003]
[1734995370139,0.054521,95318.0,95302.0,0.052529]
[1734995370140,0.052526,95309.0,95302.0,0.052529]
[1734995370342,0.052526,95309.0,95304.0,0.052528]
[1734995370648,0.052526,95309.0,95305.0,0.052528]
[1734995370837,0.052527,95308.0,95300.0,0.1]
[1734995371038,0.052527,95307.0,95300.0,0.1]
[1734995372348,0.052527,95307.0,95302.0,0.001]
[1734995372550,0.3608,95309.0,95302.0,0.001]
[1734995372749,0.052529,95304.0,95302.0,0.001]
[1734995373045,0.0001105,95303.0,95300.0,0.105]
[1734995373249,0.05253,95302.0,95300.0,0.105]
[1734995373751,0.05253,95302.0,95300.0,0.104]
[1734995374061,0.0001105,95303.0,95301.0,0.05253]
[1734995374245,0.0001105,95303.0,95300.0,0.104]
[1734995374548,0.05253,95302.0,95300.0,0.104]
[1734995374739,0.05253,95302.0,95300.0,0.1]
[1734995375553,0.05253,95302.0,95300.0,0.101]
[1734995375946,0.0001105,95303.0,95300.0,0.105]
[1734995376449,0.0001105,95303.0,95301.0,0.05253]
[1734995376652,0.3608,95329.0,95300.0,0.46576]
[1734995376947,0.413315,95329.0,95319.0,0.3608]
[1734995377142,0.413315,95329.0,95300.0,0.46576]
[1734995377143,0.3608,95320.0,95300.0,0.46576]
[1734995377342,0.3608,95311.0,95310.0,0.18458953]
[1734995377654,0.36090257,95311.0,95310.0,0.18458953]
[1734995378650,0.41342757,95311.0,95310.0,0.18458953]
[1734995378953,0.41442757,95311.0,95310.0,0.007]
[1734995379342,0.052529,95305.0,95300.0,0.4608]
[1734995380342,0.052529,95305.0,95301.0,0.18458953]
[1734995380949,0.05253,95302.0,95301.0,0.18458953]
[1734995381638,0.05253,95302.0,95301.0,0.19058953]
[1734995381841,0.05253,95302.0,95301.0,0.006]
[1734995382147,0.05253,95302.0,95300.0,0.46176]
[1734995382348,0.05253,95302.0,95301.0,0.004]
[1734995382744,0.05253,95301.0,95300.0,0.46476]
[1734995382947,0.05253,95301.0,95300.0,0.4638]
[1734995383247,0.1224,95310.0,95300.0,0.4618]
[1734995383456,0.05253,95301.0,95300.0,0.4618]
[1734995383849,0.05253,95301.0,95300.0,0.4608]
[1734995384047,0.05253,95301.0,95300.0,0.4618]
[1734995384453,0.05253,95301.0,95300.0,0.4658]
[1734995385439,0.05253,95301.0,95300.0,0.4648]
[1734995386648,0.05253,95301.0,95300.0,0.104]
[1734995386848,0.05253,95301.0,95300.0,0.103]
[1734995387150,0.05253,95301.0,95300.0,0.028]
[1734995387343,0.05253,95301.0,95300.0,0.031]
[1734995387853,0.05263257,95301.0,95300.0,0.031]
[1734995388854,0.05263257,95301.0,95300.0,0.028]
[1734995389061,0.05263257,95301.0,95300.0,0.03]
[1734995389253,0.00010257,95301.0,95300.0,0.029]
[1734995389561,0.3608,95311.0,95300.0,0.029]
[1734995389562,0.12393189,95327.0,95300.0,0.43457371]
[1734995389745,0.12393189,95327.0,95301.0,0.04477371]
[1734995390060,0.3608,95321.0,95302.0,0.09730371]
[1734995390254,0.3608,95321.0,95300.0,0.49634084]
[1734995390255,0.09331614,95319.0,95303.0,0.09730271]
[1734995390451,0.052524,95313.0,95304.0,0.09730171]
[1734995390757,0.052524,95313.0,95305.0,0.04477371]
[1734995390955,0.052524,95313.0,95306.0,0.04477371]
[1734995391251,0.052521,95318.0,95307.0,0.04477371]
[1734995391460,0.052521,95318.0,95310.0,0.30913893]
[1734995391646,0.3608,95321.0,95310.0,0.30913893]
[1734995391954,0.00056001,95330.0,95311.0,0.40558267]
[1734995392160,0.052517,95326.0,95312.0,0.09730667]
[1734995392351,0.052517,95326.0,95313.0,0.04477801]
[1734995392656,0.001,95318.0,95314.0,0.04477801]
[1734995392960,0.001,95318.0,95316.0,0.30913893]
[1734995393259,0.052518,95324.0,95317.0,0.04477801]
[1734995393553,0.052518,95324.0,95316.0,0.30913893]
[1734995393752,0.002,95321.0,95316.0,0.30913893]
[1734995393950,0.002,95321.0,95317.0,0.0444077]
[1734995394151,0.002,95321.0,95315.0,0.1278]
[1734995394152,0.002,95321.0,95318.0,0.29680155]
[1734995394355,0.002,95321.0,95319.0,0.04441822]
[1734995394548,0.005,95324.0,95318.0,0.25239385]
[1734995394958,0.052515,95330.0,95319.0,0.04442038]
[1734995395259,0.005,95321.0,95320.0,0.25239385]
[1734995395650,0.008,95321.0,95320.0,0.25239385]
[1734995396656,0.003,95321.0,95320.0,0.25239385]
[1734995397266,0.004,95321.0,95320.0,0.25839385]
[1734995397766,0.003,95321.0,95320.0,0.25239385]
[1734995398059,0.001,95321.0,95320.0,0.008]
[1734995398256,0.001,95321.0,95320.0,0.02335863]
[1734995398455,0.052515,95329.0,95320.0,0.007]
[1734995398651,0.3608,95333.0,95320.0,0.007]
[1734995398956,0.052516,95328.0,95320.0,0.007]
[1734995399160,0.3608,95333.0,95320.0,0.3678]
[1734995399861,0.413313,95333.0,95320.0,0.3678]
[1734995400163,0.052514,95331.0,95320.0,0.3678]
[1734995400355,0.052514,95331.0,95320.0,0.3628]
[1734995400554,0.052514,95331.0,95320.0,0.3658]
[1734995400757,0.052514,95331.0,95321.0,0.31040227]
[1734995400959,0.052515,95330.0,95321.0,0.31040227]
[1734995401157,0.052515,95329.0,95321.0,0.31040227]
[1734995401667,0.3608,95333.0,95321.0,0.31040227]
[1734995401867,0.052517,95325.0,95321.0,0.31040227]
[1734995402257,0.052517,95325.0,95321.0,0.002]
[1734995402459,0.3608,95325.0,95321.0,0.002]
[1734995402663,0.052518,95323.0,95321.0,0.002]
[1734995403762,0.052518,95323.0,95312.0,0.31040227]
[1734995403967,0.413324,95313.0,95312.0,0.10800227]
[1734995404188,0.052528,95305.0,95304.0,0.37169195]
[1734995404488,0.413328,95305.0,95304.0,0.37169195]
[1734995404881,0.413328,95305.0,95304.0,0.20034717]
[1734995405182,0.05253,95301.0,95300.0,0.027]
[1734995405383,0.41333,95301.0,95300.0,0.027]
[1734995407083,0.41333,95301.0,95292.0,0.18643825]
[1734995407084,0.77413,95301.0,95292.0,0.18643825]
[1734995407294,0.413335,95293.0,95292.0,0.11343825]